fUST/lending_fUST_20240613
["ID","MTS","AMOUNT","RATE_DAILY","PERIOD"]
[329277282,1718211050395,-500.0,0.00018082,2]
[329277284,1718211050405,-756.03,0.00018082,2]
[329277286,1718211050416,-765.44,0.00018082,2]
[329277288,1718211050426,-920.58,0.00018082,2]
[329277303,1718211050598,-500.0,0.00018082,2]
[329277305,1718211050610,-1158.22,0.00018082,2]
[329277307,1718211050621,-10394.18,0.00018082,2]
[329277309,1718211050632,-500.0,0.00018082,2]
[329277311,1718211050644,-302.61382712,0.00018082,2]
[329277313,1718211050654,-4522.7,0.00018082,2]
[329277315,1718211050663,-500.0,0.00018082,2]
[329277317,1718211050673,-1791.0,0.00018082,2]
[329277319,1718211050683,-3927.6,0.00018082,2]
[329277321,1718211050693,-500.0,0.00018082,2]
[329277323,1718211050703,-500.0,0.00018082,2]
[329277325,1718211050714,-514.23501858,0.00018082,2]
[329277327,1718211050723,-500.0,0.00018082,2]
[329277329,1718211050735,-500.0,0.00018082,2]
[329277331,1718211050745,-1058.22,0.00018082,2]
[329277333,1718211050755,-8449.64,0.00018082,2]
[329277335,1718211050765,-744.35,0.00018082,2]
[329277337,1718211050774,-500.0,0.00018082,2]
[329277339,1718211050785,-1853.08,0.00018082,2]
[329277341,1718211050795,-709.48,0.00018082,2]
[329277343,1718211050805,-576.16,0.00018082,2]
[329277345,1718211050815,-1263.74,0.00018082,2]
[329277347,1718211050826,-500.0,0.00018082,2]
[329277349,1718211050836,-598.38989292,0.00018082,2]
[329277351,1718211050846,-3457.25,0.00018082,2]
[329277353,1718211050856,-151.0,0.00018082,2]
[329277355,1718211050866,-289.646229,0.00018082,2]
[329277357,1718211050877,-2510.54,0.00018082,2]
[329277359,1718211050887,-681.3,0.00018138,2]
[329277361,1718211050899,-153.0,0.00018237,2]
[329277363,1718211050910,-306.0,0.00018237,2]
[329277365,1718211050921,-153.0,0.00018237,2]
[329277367,1718211050933,-705.56666325,0.00018256,2]
[329277369,1718211050943,-681.3,0.00018345,2]
[329277371,1718211050954,-500.0,0.00018356,2]
[329277373,1718211050966,-500.0,0.00018356,2]
[329277375,1718211050977,-500.0,0.00018356,2]
[329277377,1718211050988,-617.02,0.00018356,2]
[329277379,1718211050999,-500.0,0.00018356,2]
[329277381,1718211051009,-500.0,0.00018356,4]
[329277383,1718211051020,-500.0,0.00018356,2]
[329277385,1718211051030,-500.0,0.00018356,2]
[329277387,1718211051039,-681.6,0.00018356,2]
[329277389,1718211051050,-500.0,0.00018356,2]
[329277391,1718211051062,-826.38,0.00018356,2]
[329277393,1718211051072,-500.0,0.00018356,2]
[329277395,1718211051082,-1114.65,0.00018356,2]
[329277397,1718211051092,-500.0,0.00018356,2]
[329277399,1718211051102,-5705.27,0.00018356,2]
[329277401,1718211051113,-500.0,0.00018356,2]
[329277403,1718211051122,-500.0,0.00018356,2]
[329277405,1718211051132,-756.03,0.00018356,2]
[329277407,1718211051142,-765.44,0.00018356,2]
[329277409,1718211051152,-372.177443,0.00018356,2]
[329277411,1718211051163,-920.58,0.00018356,2]
[329277413,1718211051173,-372.177443,0.00018356,2]
[329277415,1718211051183,-500.0,0.00018356,2]
[329277417,1718211051194,-1158.22,0.00018356,2]
[329277419,1718211051204,-151.0,0.00018356,2]
[329277421,1718211051214,-151.0,0.00018356,2]
[329277422,1718211051226,-10394.18,0.00018356,2]
[329277423,1718211051237,-500.0,0.00018356,2]
[329277424,1718211051247,-4522.7,0.00018356,2]
[329277425,1718211051257,-500.0,0.00018356,2]
[329277426,1718211051271,-1791.0,0.00018356,2]
[329277427,1718211051281,-220.453376,0.00018356,2]
[329277428,1718211051291,-3927.6,0.00018356,2]
[329277429,1718211051302,-500.0,0.00018356,2]
[329277430,1718211051312,-151.0,0.00018356,2]
[329277431,1718211051322,-203.447223,0.00018356,2]
[329277432,1718211051333,-203.447223,0.00018356,2]
[329277433,1718211051343,-500.0,0.00018356,2]
[329277434,1718211051353,-500.0,0.00018356,2]
[329277436,1718211051363,-500.0,0.00018356,2]
[329277438,1718211051374,-1058.22,0.00018356,2]
[329277440,1718211051384,-8449.64,0.00018356,2]
[329277442,1718211051395,-744.35,0.00018356,2]
[329277444,1718211051406,-500.0,0.00018356,2]
[329277446,1718211051416,-1853.08,0.00018356,2]
[329277448,1718211051427,-709.48,0.00018356,2]
[329277450,1718211051442,-151.0,0.00018356,2]
[329277452,1718211051458,-576.16,0.00018356,2]
[329277454,1718211051470,-490.222134,0.00018356,2]
[329277456,1718211051481,-1263.74,0.00018356,2]
[329277459,1718211051508,-490.222134,0.00018356,2]
[329277460,1718211051519,-500.0,0.00018356,2]
[329277462,1718211051533,-3457.25,0.00018356,2]
[329277465,1718211051548,-2510.54,0.00018356,2]
[329277467,1718211051565,-155.0,0.0001843,2]
[329277469,1718211051576,-400.849802,0.00018439,2]
[329277471,1718211051589,-468.223464,0.00018439,2]
[329277473,1718211051600,-5281.92082876,0.00018458,2]
[329277475,1718211051610,-151.0,0.00018458,2]
[329277476,1718211051620,-606.91207968,0.000185,2]
[329277478,1718211051632,-410.7646814,0.00018511,2]
[329277480,1718211051643,-205.3823407,0.00018511,2]
[329277483,1718211051654,-499.0,0.00018534,2]
[329277484,1718211051665,-150.0,0.00018534,2]
[329277487,1718211051675,-1750.0,0.00018534,2]
[329277489,1718211051686,-681.3,0.00018552,2]
[329277491,1718211051699,-151.0,0.00018552,2]
[329277493,1718211051710,-166.666666,0.00018575,2]
[329277495,1718211051722,-153.0,0.0001862,2]
[329277497,1718211051732,-153.0,0.0001862,2]
[329277499,1718211051746,-179.78860579,0.00018628,2]
[329277501,1718211051757,-500.0,0.0001863,2]
[329277503,1718211051768,-500.0,0.0001863,2]
[329277505,1718211051780,-500.0,0.0001863,2]
[329277507,1718211051790,-617.02,0.0001863,2]
[329277509,1718211051801,-500.0,0.0001863,2]
[329277511,1718211051813,-500.0,0.0001863,4]
[329277513,1718211051824,-500.0,0.0001863,2]
[329277515,1718211051834,-500.0,0.0001863,2]
[329277517,1718211051845,-681.6,0.0001863,2]
[329277519,1718211051855,-500.0,0.0001863,2]
[329277521,1718211051866,-826.38,0.0001863,2]
[329277522,1718211051877,-500.0,0.0001863,2]
[329277524,1718211051888,-1114.65,0.0001863,2]
[329277526,1718211051899,-500.0,0.0001863,2]
[329277528,1718211051910,-5705.27,0.0001863,2]
[329277530,1718211051921,-500.0,0.0001863,2]
[329277532,1718211051932,-500.0,0.0001863,2]
[329277534,1718211051942,-756.03,0.0001863,2]
[329277536,1718211051953,-765.44,0.0001863,2]
[329277538,1718211051964,-920.58,0.0001863,2]
[329277540,1718211051976,-500.0,0.0001863,2]
[329277543,1718211051988,-1158.22,0.0001863,2]
[329277544,1718211052000,-10394.18,0.0001863,2]
[329277547,1718211052011,-500.0,0.0001863,2]
[329277548,1718211052022,-4522.7,0.0001863,2]
[329277550,1718211052032,-500.0,0.0001863,2]
[329277552,1718211052042,-1791.0,0.0001863,2]
[329277554,1718211052053,-3927.6,0.0001863,2]
[329277556,1718211052064,-500.0,0.0001863,2]
[329277558,1718211052074,-278.30430788,0.0001863,2]
[329277560,1718211052085,-500.0,0.0001863,2]
[329277562,1718211052096,-500.0,0.0001863,2]
[329277564,1718211052107,-8449.64,0.0001863,2]
[329277566,1718211052118,-1058.22,0.0001863,2]
[329277568,1718211052129,-744.35,0.0001863,2]
[329277570,1718211052140,-500.0,0.0001863,2]
[329277572,1718211052151,-1853.08,0.0001863,2]
[329277574,1718211052162,-709.48,0.0001863,2]
[329277577,1718211052177,-576.16,0.0001863,2]
[329277579,1718211052188,-1263.74,0.0001863,2]
[329277581,1718211052199,-500.0,0.0001863,2]
[329277582,1718211052211,-3457.25,0.0001863,2]
[329277584,1718211052222,-2510.54,0.0001863,2]
[329277587,1718211052233,-250.0,0.0001863,2]
[329277588,1718211052246,-400.849802,0.00018669,2]
[329277591,1718211052261,-468.223464,0.00018669,2]
[329277593,1718211052276,-933.463318,0.00018728,2]
[329277596,1718211052291,-818.037339,0.00018728,2]
[329277598,1718211052306,-681.3,0.00018759,2]
[329277600,1718211052319,-151.0,0.00018759,2]
[329277602,1718211052332,-705.56666325,0.00018804,2]
[329277604,1718211052345,-400.849802,0.000189,2]
[329277607,1718211052358,-468.223464,0.000189,2]
[329277609,1718211052372,-10405.04488497,0.000189,2]
[329277611,1718211052385,-316.85472816,0.00018904,13]
[329277614,1718211052399,-500.0,0.00018904,2]
[329277616,1718211052414,-615.10468459,0.00018904,2]
[329277618,1718211052426,-500.0,0.00018904,2]
[329277620,1718211052440,-617.02,0.00018904,2]
[329277622,1718211052456,-500.0,0.00018904,2]
[329277625,1718211052472,-500.0,0.00018904,4]
[329277627,1718211052485,-500.0,0.00018904,2]
[329277630,1718211052514,-500.0,0.00018904,2]
[329277632,1718211052529,-681.6,0.00018904,2]
[329277634,1718211052544,-500.0,0.00018904,2]
[329277637,1718211052557,-151.0,0.00018904,2]
[329277639,1718211052569,-151.0,0.00018904,2]
[329277641,1718211052584,-151.0,0.00018904,2]
[329277643,1718211052597,-237.066056,0.00018904,2]
[329277645,1718211052610,-237.066056,0.00018904,2]
[329277648,1718211052623,-826.38,0.00018904,2]
[329277650,1718211052637,-517.442317,0.00018904,2]
[329277652,1718211052648,-517.442317,0.00018904,2]
[329277654,1718211052660,-151.0,0.00018904,2]
[329277656,1718211052674,-500.0,0.00018904,2]
[329277658,1718211052690,-172.483047,0.00018904,2]
[329277660,1718211052707,-172.483047,0.00018904,2]
[329277662,1718211052722,-470.630948,0.00018904,2]
[329277665,1718211052741,-470.630948,0.00018904,2]
[329277667,1718211052759,-151.0,0.00018904,2]
[329277669,1718211052774,-1114.65,0.00018904,2]
[329277671,1718211052790,-500.0,0.00018904,2]
[329277673,1718211052804,-5705.27,0.00018904,2]
[329277676,1718211052820,-500.0,0.00018904,2]
[329277678,1718211052833,-500.0,0.00018904,2]
[329277680,1718211052845,-756.03,0.00018904,2]
[329277682,1718211052856,-765.44,0.00018904,2]
[329277684,1718211052867,-372.177443,0.00018904,2]
[329277686,1718211052879,-920.58,0.00018904,2]
[329277689,1718211052891,-372.177443,0.00018904,2]
[329277691,1718211052904,-500.0,0.00018904,2]
[329277693,1718211052918,-1158.22,0.00018904,2]
[329277695,1718211052930,-158.288148,0.00018904,2]
[329277698,1718211052944,-10394.18,0.00018904,2]
[329277700,1718211052956,-190.81633051,0.00018904,2]
[329277702,1718211052968,-4522.7,0.00018904,2]
[329277704,1718211052981,-500.0,0.00018904,2]
[329277706,1718211052995,-1791.0,0.00018904,2]
[329277708,1718211053007,-3927.6,0.00018904,2]
[329277711,1718211053022,-500.0,0.00018904,2]
[329277713,1718211053033,-272.982961,0.00018904,2]
[329277715,1718211053045,-203.447223,0.00018904,2]
[329277717,1718211053057,-203.447223,0.00018904,2]
[329277719,1718211053070,-500.0,0.00018904,2]
[329277722,1718211053083,-500.0,0.00018904,2]
[329277724,1718211053095,-8449.64,0.00018904,2]
[329277726,1718211053106,-1058.22,0.00018904,2]
[329277728,1718211053118,-744.35,0.00018904,2]
[329277730,1718211053129,-500.0,0.00018904,2]
[329277732,1718211053141,-1853.08,0.00018904,2]
[329277734,1718211053152,-709.48,0.00018904,2]
[329277736,1718211053163,-171.234053,0.00018904,2]
[329277739,1718211053176,-576.16,0.00018904,2]
[329277741,1718211053187,-490.222134,0.00018904,2]
[329277743,1718211053199,-1263.74,0.00018904,2]
[329277745,1718211053211,-490.222134,0.00018904,2]
[329277747,1718211053222,-500.0,0.00018904,2]
[329277750,1718211053234,-3457.25,0.00018904,2]
[329277752,1718211053250,-151.0,0.00018904,2]
[329277754,1718211053261,-2510.54,0.00018904,2]
[329277756,1718211053273,-933.463318,0.00018956,2]
[329277758,1718211053285,-818.037339,0.00018956,2]
[329277760,1718211053297,-146.45207002,0.00018966,2]
[329277783,1718211053525,-151.0,0.00018356,2]
[329277785,1718211053539,-534.84792998,0.00018966,2]
[329277787,1718211053552,-151.0,0.00018966,2]
[329277789,1718211053564,-777.89782886,0.00018987,2]
[329277792,1718211053578,-7270.73643792,0.00019,2]
[329277794,1718211053589,-163.14541634,0.00019,2]
[329277796,1718211053600,-180.0,0.00019,2]
[329277798,1718211053612,-37830.33698502,0.0001901,2]
[329277864,1718211054401,-747.43,0.00016438,2]
[329277865,1718211054412,-747.43,0.00016712,2]
[329277866,1718211054423,-150.0,0.00018534,2]
[329277867,1718211054433,-6125.81817143,0.0001901,2]
[329277868,1718211054448,-300.0,0.0001901,2]
[329277869,1718211054461,-300.0,0.0001901,2]
[329277870,1718211054477,-151.0,0.0001901,2]
[329277871,1718211054495,-151.0,0.00019078,2]
[329277872,1718211054511,-295.857796,0.00019078,2]
[329277873,1718211054524,-295.857796,0.00019078,2]
[329277874,1718211054534,-151.0,0.00019078,2]
[329277876,1718211054545,-151.0,0.00019078,2]
[329277878,1718211054556,-237.066056,0.00019078,2]
[329277880,1718211054568,-237.066056,0.00019078,2]
[329277881,1718211054583,-517.442317,0.00019078,2]
[329277882,1718211054595,-517.442317,0.00019078,2]
[329277883,1718211054606,-151.0,0.00019078,2]
[329277885,1718211054618,-172.483047,0.00019078,2]
[329277887,1718211054629,-172.483047,0.00019078,2]
[329277889,1718211054641,-470.630948,0.00019078,2]
[329277891,1718211054651,-470.630948,0.00019078,2]
[329277893,1718211054662,-151.0,0.00019078,2]
[329277894,1718211054672,-400.849802,0.0001913,2]
[329277896,1718211054681,-468.223464,0.0001913,2]
[329277898,1718211054692,-39086.67086451,0.0001916,5]
[329277910,1718211054843,-411.54796319,0.00016986,2]
[329277917,1718211055006,-335.88203681,0.00016986,2]
[329277919,1718211055019,-747.43,0.0001726,2]
[329277921,1718211055030,-747.43,0.00017534,2]
[329277923,1718211055039,-747.43,0.00017808,2]
[329277925,1718211055049,-747.43,0.00018082,2]
[329277927,1718211055059,-747.43,0.00018356,2]
[329277929,1718211055069,-252.460522,0.00018356,2]
[329277931,1718211055079,-652.24335609,0.0001863,2]
[329277934,1718211055092,-95.18664391,0.0001863,2]
[329277936,1718211055102,-151.0,0.00018904,2]
[329277938,1718211055113,-747.43,0.00018904,2]
[329277939,1718211055123,-2793.02520053,0.0001916,5]
[329277958,1718211058274,267.59083178,9.999e-05,7]
[329277960,1718211331962,19265.53662968,0.00016986,15]
[329278068,1718212233507,-1087.99520953,0.000161,2]
[329278070,1718212233518,-1149.23161177,0.00016338,2]
[329278072,1718212233529,-716.82233035,0.00016338,2]
[329278074,1718212233540,-300.0,0.00016434,2]
[329278076,1718212233553,-181.91947349,0.00016435,2]
[329278078,1718212233563,-248.19857389,0.00016435,7]
[329278080,1718212233575,-179.78860579,0.00016435,2]
[329278082,1718212233586,-159.06387123,0.00016435,2]
[329278083,1718212233597,-1501.47522843,0.00016435,2]
[329278086,1718212233607,-2471.22144438,0.00016436,2]
[329278539,1718212239219,-728.45055144,0.00016436,2]
[329278547,1718212239511,-1634.54440813,0.00016436,2]
[329278548,1718212239530,-9498.44946957,0.00016436,2]
[329278549,1718212239542,-155.19428963,0.00016437,2]
[329278550,1718212239561,-62955.92491331,0.00016437,2]
[329278551,1718212239577,-500.0,0.00016438,2]
[329278552,1718212239599,-239.80654856,0.00016438,2]
[329278553,1718212239615,-500.0,0.00016438,2]
[329278554,1718212239628,-500.0,0.00016438,2]
[329278555,1718212239649,-500.0,0.00016438,4]
[329278556,1718212239672,-250.0,0.00016438,2]
[329278557,1718212239685,-543.53,0.00016438,2]
[329278558,1718212239714,-503.39915285,0.00016438,2]
[329278559,1718212239729,-500.0,0.00016438,2]
[329278560,1718212239741,-505.30895665,0.00016438,2]
[329278561,1718212239752,-500.0,0.00016438,2]
[329278562,1718212239763,-500.0,0.00016438,2]
[329278563,1718212239774,-500.0,0.00016438,2]
[329278564,1718212239793,-471.67162943,0.00016438,2]
[329278565,1718212239820,-634.85084351,0.00016438,2]
[329278566,1718212239844,-500.0,0.00016438,2]
[329278569,1718212239863,-500.0,0.00016438,2]
[329278571,1718212239899,-500.0,0.00016438,2]
[329278573,1718212239940,-500.0,0.00016438,2]
[329278576,1718212239958,-500.0,0.00016438,2]
[329278578,1718212239973,-500.0,0.00016438,2]
[329278580,1718212239989,-500.0,0.00016438,2]
[329278582,1718212240004,-500.0,0.00016438,2]
[329278584,1718212240020,-500.0,0.00016438,2]
[329278586,1718212240036,-500.0,0.00016438,2]
[329278588,1718212240050,-500.0,0.00016438,2]
[329278590,1718212240064,-500.0,0.00016438,2]
[329278592,1718212240079,-500.0,0.00016438,2]
[329278594,1718212240093,-243.55702098,0.00016438,2]
[329278596,1718212240109,-500.0,0.00016438,2]
[329278598,1718212240124,-500.0,0.00016438,2]
[329278600,1718212240142,-475.74,0.00016438,2]
[329278602,1718212240153,-500.0,0.00016438,2]
[329278604,1718212240169,-687.11,0.00016438,2]
[329278606,1718212240182,-500.0,0.00016438,2]
[329278608,1718212240197,-500.0,0.00016438,2]
[329278610,1718212240211,-500.0,0.00016438,2]
[329278612,1718212240229,-500.0,0.00016438,2]
[329278614,1718212240245,-500.0,0.00016438,2]
[329278616,1718212240260,-500.0,0.00016438,2]
[329278618,1718212240273,-500.0,0.00016438,2]
[329278620,1718212240286,-467.84518216,0.00016438,2]
[329278622,1718212240301,-500.0,0.00016438,2]
[329278623,1718212240320,-500.0,0.00016438,2]
[329278625,1718212240335,-500.0,0.00016438,2]
[329278627,1718212240356,-500.0,0.00016438,2]
[329278628,1718212240370,-500.0,0.00016438,2]
[329278629,1718212240383,-500.0,0.00016438,2]
[329278631,1718212240395,-500.0,0.00016438,2]
[329278633,1718212240414,-500.0,0.00016438,2]
[329278635,1718212240429,-500.0,0.00016438,2]
[329278637,1718212240441,-500.0,0.00016438,2]
[329278638,1718212240455,-500.0,0.00016438,2]
[329278640,1718212240466,-500.0,0.00016438,2]
[329278643,1718212240480,-500.0,0.00016438,2]
[329278645,1718212240497,-500.0,0.00016438,2]
[329278647,1718212240508,-500.0,0.00016438,2]
[329278649,1718212240519,-500.0,0.00016438,2]
[329278650,1718212240530,-600.32,0.00016438,2]
[329278652,1718212240540,-500.0,0.00016438,2]
[329278654,1718212240551,-500.0,0.00016438,2]
[329278656,1718212240563,-500.0,0.00016438,2]
[329278659,1718212240580,-500.0,0.00016438,2]
[329278661,1718212240593,-500.0,0.00016438,2]
[329278663,1718212240604,-500.0,0.00016438,2]
[329278677,1718212240780,-500.0,0.00016438,2]
[329278678,1718212240792,-500.0,0.00016438,2]
[329278680,1718212240803,-500.0,0.00016438,2]
[329278682,1718212240814,-500.0,0.00016438,2]
[329278686,1718212240846,-500.0,0.00016438,2]
[329278688,1718212240858,-500.0,0.00016438,2]
[329278689,1718212240871,-500.0,0.00016438,2]
[329278691,1718212240885,-500.0,0.00016438,2]
[329278693,1718212240906,-500.0,0.00016438,2]
[329278695,1718212240924,-731.35,0.00016438,2]
[329278697,1718212240937,-500.0,0.00016438,2]
[329278699,1718212240949,-500.0,0.00016438,2]
[329278701,1718212240964,-500.0,0.00016438,2]
[329278703,1718212240977,-500.0,0.00016438,2]
[329278704,1718212240987,-548.87207767,0.00016438,2]
[329278705,1718212240998,-500.0,0.00016438,2]
[329278706,1718212241010,-500.0,0.00016438,2]
[329278707,1718212241021,-500.0,0.00016438,2]
[329278708,1718212241031,-500.0,0.00016438,2]
[329278709,1718212241042,-500.0,0.00016438,2]
[329278711,1718212241056,-500.0,0.00016438,2]
[329278713,1718212241068,-500.0,0.00016438,2]
[329278715,1718212241088,-500.0,0.00016438,2]
[329278717,1718212241099,-500.0,0.00016438,2]
[329278719,1718212241113,-500.0,0.00016438,2]
[329278721,1718212241125,-500.0,0.00016438,2]
[329278723,1718212241140,-500.0,0.00016438,2]
[329278725,1718212241153,-500.0,0.00016438,2]
[329278727,1718212241165,-310.58742665,0.00016438,2]
[329278729,1718212241179,-500.0,0.00016438,2]
[329278731,1718212241191,-500.0,0.00016438,2]
[329278733,1718212241202,-500.0,0.00016438,2]
[329278735,1718212241214,-500.0,0.00016438,2]
[329278737,1718212241225,-500.0,0.00016438,2]
[329278738,1718212241238,-500.0,0.00016438,2]
[329278739,1718212241251,-2610.67,0.00016438,2]
[329278740,1718212241264,-500.0,0.00016438,2]
[329278741,1718212241277,-500.0,0.00016438,2]
[329278742,1718212241288,-500.0,0.00016438,2]
[329278743,1718212241300,-500.0,0.00016438,2]
[329278744,1718212241311,-500.0,0.00016438,2]
[329278745,1718212241321,-500.0,0.00016438,2]
[329278746,1718212241334,-522.25239558,0.00016438,2]
[329278747,1718212241346,-731.22,0.00016438,2]
[329278748,1718212241363,-723.63,0.00016438,2]
[329278749,1718212241373,-977.4,0.00016438,2]
[329278750,1718212241383,-896.07,0.00016438,2]
[329278751,1718212241394,-238.30700054,0.00016438,2]
[329278752,1718212241406,-500.0,0.00016438,2]
[329278753,1718212241416,-500.0,0.00016438,2]
[329278754,1718212241426,-500.0,0.00016438,2]
[329278755,1718212241436,-500.0,0.00016438,2]
[329278756,1718212241446,-4700.03,0.00016438,2]
[329278757,1718212241459,-500.0,0.00016438,2]
[329278758,1718212241470,-500.0,0.00016438,2]
[329278759,1718212241482,-500.0,0.00016438,2]
[329278760,1718212241506,-500.0,0.00016438,2]
[329278761,1718212241534,-500.0,0.00016438,2]
[329278762,1718212241559,-500.0,0.00016438,2]
[329278763,1718212241585,-500.0,0.00016438,2]
[329278764,1718212241612,-500.0,0.00016438,2]
[329278765,1718212241641,-509.10602516,0.00016438,2]
[329278766,1718212241662,-500.0,0.00016438,2]
[329278767,1718212241673,-500.0,0.00016438,2]
[329278768,1718212241684,-500.0,0.00016438,2]
[329278769,1718212241695,-500.0,0.00016438,2]
[329278770,1718212241705,-500.0,0.00016438,2]
[329278771,1718212241716,-500.0,0.00016438,2]
[329278772,1718212241726,-500.0,0.00016438,2]
[329278774,1718212241738,-9653.09,0.00016438,2]
[329278776,1718212241750,-500.0,0.00016438,2]
[329278778,1718212241763,-500.0,0.00016438,2]
[329278780,1718212241775,-1847.77,0.00016438,2]
[329278782,1718212241785,-500.0,0.00016438,2]
[329278784,1718212241797,-500.0,0.00016438,2]
[329278786,1718212241809,-500.0,0.00016438,2]
[329278788,1718212241821,-500.0,0.00016438,2]
[329278789,1718212241832,-3440.92,0.00016438,2]
[329278791,1718212241846,-500.0,0.00016438,2]
[329278793,1718212241857,-500.0,0.00016438,2]
[329278795,1718212241868,-500.0,0.00016438,2]
[329278797,1718212241880,-500.0,0.00016438,2]
[329278799,1718212241890,-500.0,0.00016438,2]
[329278801,1718212241918,-500.0,0.00016438,2]
[329278803,1718212241929,-7168.14,0.00016438,2]
[329278805,1718212241941,-500.0,0.00016438,2]
[329278807,1718212241951,-500.0,0.00016438,2]
[329278808,1718212241961,-500.0,0.00016438,2]
[329278810,1718212241971,-759.71,0.00016438,2]
[329278812,1718212241982,-500.0,0.00016438,2]
[329278814,1718212241993,-583.46282589,0.00016438,2]
[329278816,1718212242004,-500.0,0.00016438,2]
[329278818,1718212242015,-500.0,0.00016438,2]
[329278820,1718212242025,-680.76,0.00016438,2]
[329278822,1718212242036,-500.0,0.00016438,2]
[329278824,1718212242046,-500.0,0.00016438,2]
[329278826,1718212242056,-500.0,0.00016438,2]
[329278828,1718212242066,-981.02,0.00016438,2]
[329278830,1718212242079,-500.0,0.00016438,2]
[329278832,1718212242090,-500.0,0.00016438,2]
[329278834,1718212242100,-1818.3,0.00016438,2]
[329278836,1718212242111,-581.06,0.00016438,2]
[329278838,1718212242122,-500.0,0.00016438,2]
[329278840,1718212242133,-500.0,0.00016438,2]
[329278842,1718212242145,-436.24438275,0.00016438,2]
[329278844,1718212242157,-310.5906015,0.00016438,2]
[329278846,1718212242167,-1320.86,0.00016438,2]
[329278848,1718212242177,-500.0,0.00016438,2]
[329278850,1718212242188,-500.0,0.00016438,2]
[329278852,1718212242199,-500.0,0.00016438,2]
[329278853,1718212242210,-500.0,0.00016438,2]
[329278855,1718212242221,-500.0,0.00016438,2]
[329278857,1718212242231,-500.0,0.00016438,2]
[329278859,1718212242242,-500.0,0.00016438,2]
[329278861,1718212242253,-500.0,0.00016438,2]
[329278863,1718212242264,-623.14,0.00016438,2]
[329278864,1718212242274,-500.0,0.00016438,2]
[329278865,1718212242285,-2802.17,0.00016438,2]
[329278866,1718212242295,-500.0,0.00016438,2]
[329278867,1718212242306,-500.0,0.00016438,2]
[329278868,1718212242317,-500.0,0.00016438,2]
[329278869,1718212242329,-500.0,0.00016438,2]
[329278870,1718212242341,-1389.2,0.00016438,2]
[329278871,1718212242353,-500.0,0.00016438,2]
[329278872,1718212242367,-500.0,0.00016438,2]
[329278873,1718212242382,-500.0,0.00016438,2]
[329278874,1718212242396,-500.0,0.00016711,2]
[329278875,1718212242407,-500.0,0.00016712,2]
[329278876,1718212242418,-500.0,0.00016712,2]
[329278877,1718212242429,-500.0,0.00016712,2]
[329278878,1718212242440,-500.0,0.00016712,4]
[329278879,1718212242452,-250.0,0.00016712,2]
[329278880,1718212242465,-500.0,0.00016712,2]
[329278881,1718212242476,-500.0,0.00016712,2]
[329278882,1718212242488,-500.0,0.00016712,2]
[329278883,1718212242499,-500.0,0.00016712,2]
[329278884,1718212242510,-500.0,0.00016712,2]
[329278885,1718212242521,-500.0,0.00016712,2]
[329278886,1718212242532,-500.0,0.00016712,2]
[329278887,1718212242544,-500.0,0.00016712,2]